{"text_format":"3","workbook":"xlsx","n_sheets":4,"sheets":["Начало","Отчет ежемесячного бюджета","Ежемесячные расходы","Дополнительные данные"],"not_rendered":{"charts":1,"defined_names":4,"pivot_tables":2},"read":"whole","date_system":"1900"}

{"sheet":"Начало","index":0,"n_rows":8,"n_cols":2,"rows_kept":8}
[null,"ОБ ЭТОМ ШАБЛОНЕ"]
[null,"Используйте эту книгу, чтобы отслеживать расходы и создать семейный бюджет."]
[null,"Вводите плановые и фактические доходы из разных источников на листе «Отчет ежемесячного бюджета», а плановые и фактические расходы разных категорий на листе «Ежемесячные расходы»."]
[null,"Остаток и разница плановый и фактический вычисляются автоматически, и на листе «Отчет ежемесячного бюджета» обновляются схемы «Сводный бюджет» и «Обзор бюджета»."]
[null,"Вы можете изменить или ввести новую категорию в таблице на листе «Дополнительные данные»."]
[null,"Примечание. "]
[null,"В столбце A на листе «Отчет ежемесячного бюджета» и в ячейке A1 на листах «Ежемесячные расходы» и «Дополнительные данные» представлены дополнительные инструкции. Их текст намерено скрыт. Чтобы удалить этот текст, выделите столбец A или ячейку A1 и нажмите клавишу DELETE. Чтобы отобразить текст, выделите столбец A или ячейку A1 и измените цвет шрифта."]
[null,"Чтобы получить дополнительные сведения о конкретной таблице, щелкните в ней ячейку, нажмите клавиши SHIFT+F10 и выберите пункт «Таблица», а затем — «Замещающий текст». В случае сводных таблиц нажмите клавиши SHIFT+F10 в таблице, выберите «Параметры сводной таблицы», а затем откройте вкладку «Замещающий текст»."]

{"sheet":"Отчет ежемесячного бюджета","index":1,"n_rows":34,"n_cols":14,"rows_kept":34,"merged":[[0,1,0,4],[0,5,0,7],[0,12,0,13],[1,9,5,13],[2,2,2,5],[3,2,3,5],[4,2,4,5],[7,1,10,1],[7,5,10,5],[7,6,10,6],[8,9,31,9],[12,1,16,1],[12,5,16,5],[12,6,16,6],[19,1,34,6]]}
["Создайте на этом листе Отчет ежемесячного бюджета. В ячейке справа указано название этого листа, а подзаголовок приведен в ячейке J1. Щелкните ячейку F1, чтобы перейти на лист «Ежемесячные расходы». В ячейках этого столбца представлены другие полезные инструкции по использованию этого листа.","Обзор бюджета",{"$nulls":3},"Ежемесячные расходы",{"$nulls":3},"Сводный бюджет",null,null,"В этой ячейке находится пшеничный стебелек зеленого цвета."]
["Надпись «Остаток» расположена в ячейке справа. Срезы сводной таблицы для фильтрации данных таблицы расположены в ячейках с J2 по N6. Чтобы выбрать несколько категорий, удерживайте нажатой клавишу CONTROL.","Остаток",{"$nulls":7},"В этой ячейке находится срез «Категория» для фильтрации сводной таблицы ниже по выбранной категория."]
["Надпись «Плановый остаток» расположена в ячейке справа. Плановый остаток автоматически рассчитывается в ячейке G3.","Плановый остаток","(плановая сумма минус расходы)",{"$nulls":3},{"$f":"D17-SUM(СведенияБюджета[Плановые затраты])","v":{"v":1585,"d":"1,585 ₽"}}]
["Надпись «Фактический остаток» расположена в ячейке справа. Фактический остаток автоматически рассчитывается в ячейке G4.","Фактический остаток ","(фактическая сумма минус расходы)",{"$nulls":3},{"$f":"D11-SUM(СведенияБюджета[Фактические затраты])","v":{"v":1740,"d":"1,740 ₽"}}]
["Надпись «Разница» расположена в ячейке справа. Разница автоматически рассчитывается в ячейке G5. Дальнейшие инструкции представлены в ячейке A7.","Разница","(фактическая сумма минус плановая сумма)",{"$nulls":3},{"$f":"G4-G3","v":{"v":155,"d":"155 ₽"}}]
[]
["Надпись «Доходы» находится в ячейке справа, надпись «Расходы» — в ячейке F7, а надпись «Сводный бюджет» — в ячейке J7.","Доходы",{"$nulls":3},"Расходы",{"$nulls":3},"Выберите сводную таблицу ниже и нажмите кнопку Обновить на вкладке «Анализ» для обновления."]
["Надпись «Фактические доходы» находится в ячейке справа, а надпись «Фактические расходы» — в ячейке F8. Введите Доход 1 в ячейку D8. Фактические расходы автоматически вычисляются в ячейке G8.","ФАКТИЧЕСКИЕ","Доход 1",{"v":5800,"d":"5,800 ₽"},null,"ФАКТИЧЕСКИЕ",{"$f":"SUM(СведенияБюджета[Фактические затраты])","v":{"v":7860,"d":"7,860 ₽"}}]
["Введите Доход 2 в ячейку D9. Изображение находится в ячейке J9. Сводная таблица начинается в ячейке K9. Чтобы обновить сводную таблицу, нажмите кнопку «Обновить» на вкладке «Анализировать».",null,"Доход 2",{"v":2300,"d":"2,300 ₽"},{"$nulls":5},"В этой ячейке находится изображение.","Категория","Плановые затраты ","Фактические затраты ","Разниц"]
["Введите Дополнительный доход в ячейку D10.",null,"Дополнительный доход",{"v":1500,"d":"1,500 ₽"},{"$nulls":6},"Дети",{"v":140,"d":"140 ₽"},{"v":140,"d":"140 ₽"},{"v":0,"d":"0 ₽"}]
["Надпись «Общий доход» находится в ячейке C11, а общий доход автоматически вычисляется в ячейке D11. Дальнейшие инструкции представлены в ячейке A13.",null,"Общий доход",{"$f":"SUM(D8:D10)","v":{"v":9600,"d":"9,600 ₽"}}]
[{"$nulls":10},"Развлечения",{"v":400,"d":"400 ₽"},{"v":358,"d":"358 ₽"},{"v":42,"d":"42 ₽"}]
["Надпись «Плановые доходы» находится в ячейке справа, а надпись «Плановые расходы» — в ячейке F13. Плановые расходы автоматически вычисляются в ячейке G13.","ПЛАНИРУЕМЫЕ",{"$nulls":3},"ПЛАНИРУЕМЫЕ",{"$f":"SUM(СведенияБюджета[Плановые затраты])","v":{"v":7915,"d":"7,915 ₽"}}]
["Введите плановый доход 1 в ячейку D14.",null,"Доход 1",{"v":6000,"d":"6,000 ₽"},{"$nulls":6},"Еда",{"v":1100,"d":"1,100 ₽"},{"v":1320,"d":"1,320 ₽"},{"v":-220,"d":"-220 ₽"}]
["Введите плановый доход 2 в ячейку D15.",null,"Доход 2",{"v":1000,"d":"1,000 ₽"}]
["Введите Дополнительный доход в ячейку D16.",null,"Дополнительный доход",{"v":2500,"d":"2,500 ₽"},{"$nulls":6},"Подарки и благотворительность",{"v":100,"d":"100 ₽"},{"v":125,"d":"125 ₽"},{"v":-25,"d":"-25 ₽"}]
["Надпись «Общий доход» находится в ячейке C17, а общий доход автоматически вычисляется в ячейке D17. Дальнейшие инструкции содержатся в ячейке A20.",null,"Общий доход",{"$f":"SUM(D14:D16)","v":{"v":9500,"d":"9,500 ₽"}}]
[{"$nulls":10},"Жилье",{"v":2830,"d":"2,830 ₽"},{"v":2702,"d":"2,702 ₽"},{"v":128,"d":"128 ₽"}]
[]
["Круговая диаграмма с процентными долями расходов по категориям находится в ячейке справа.","В этой ячейке находится круговая диаграмма с процентными долями расходов по категориям расходов.",{"$nulls":8},"Страхование",{"v":900,"d":"900 ₽"},{"v":900,"d":"900 ₽"},{"v":0,"d":"0 ₽"}]
[]
[{"$nulls":10},"Кредиты",{"v":200,"d":"200 ₽"},{"v":200,"d":"200 ₽"},{"v":0,"d":"0 ₽"}]
[]
[{"$nulls":10},"Предметы личной гигиены",{"v":150,"d":"150 ₽"},{"v":140,"d":"140 ₽"},{"v":10,"d":"10 ₽"}]
[]
[{"$nulls":10},"Домашние животные",{"v":170,"d":"170 ₽"},{"v":100,"d":"100 ₽"},{"v":70,"d":"70 ₽"}]
[]
[{"$nulls":10},"Сбережения и инвестиции",{"v":200,"d":"200 ₽"},{"v":200,"d":"200 ₽"},{"v":0,"d":"0 ₽"}]
[]
[{"$nulls":10},"Налоги",{"v":300,"d":"300 ₽"},{"v":300,"d":"300 ₽"},{"v":0,"d":"0 ₽"}]
[]
[{"$nulls":10},"Транспорт",{"v":1425,"d":"1,425 ₽"},{"v":1375,"d":"1,375 ₽"},{"v":50,"d":"50 ₽"}]
[]
[{"$nulls":10},"Общий итог",{"v":7915,"d":"7,915 ₽"},{"v":7860,"d":"7,860 ₽"},{"v":55,"d":"55 ₽"}]

{"sheet":"Ежемесячные расходы","index":2,"n_rows":62,"n_cols":7,"rows_kept":62,"merged":[[0,1,0,4],[0,5,0,6]]}
["Рассчитайте Ежемесячные расходы на этом листе. Ячейка справа содержит название листа. Щелкните ячейку F1, чтобы перейти на лист «Отчет ежемесячного бюджета».","Ежемесячные расходы",{"$nulls":3},"Отчет ежемесячного бюджета"]
[" Введите сведения в таблицу Сведения Бюджета, начинающейся с ячейки справа.","Описание","Категория","Плановые затраты","Фактические затраты","Разница","Обзор фактических затрат"]
[null,"Внешкольные занятия","Дети",{"v":40,"d":"40 ₽"},{"v":40,"d":"40 ₽"},{"$f":"СведенияБюджета[[#This Row],[Плановые затраты]]-СведенияБюджета[[#This Row],[Фактические затраты]]","v":{"v":0,"d":"0 ₽"}},{"$f":"СведенияБюджета[[#This Row],[Фактические затраты]]","v":{"v":40,"d":"40 ₽"}}]
[null,"Медицина","Дети",null,null,{"$f":"СведенияБюджета[[#This Row],[Плановые затраты]]-СведенияБюджета[[#This Row],[Фактические затраты]]","v":{"v":0,"d":"0 ₽"}},{"$f":"СведенияБюджета[[#This Row],[Фактические затраты]]","v":{"v":0,"d":"0 ₽"}}]
[null,"Школьные принадлежности","Дети",null,null,{"$f":"СведенияБюджета[[#This Row],[Плановые затраты]]-СведенияБюджета[[#This Row],[Фактические затраты]]","v":{"v":0,"d":"0 ₽"}},{"$f":"СведенияБюджета[[#This Row],[Фактические затраты]]","v":{"v":0,"d":"0 ₽"}}]
[null,"Школьное образование","Дети",{"v":100,"d":"100 ₽"},{"v":100,"d":"100 ₽"},{"$f":"СведенияБюджета[[#This Row],[Плановые затраты]]-СведенияБюджета[[#This Row],[Фактические затраты]]","v":{"v":0,"d":"0 ₽"}},{"$f":"СведенияБюджета[[#This Row],[Фактические затраты]]","v":{"v":100,"d":"100 ₽"}}]
[null,"Концерты","Развлечения",{"v":50,"d":"50 ₽"},{"v":40,"d":"40 ₽"},{"$f":"СведенияБюджета[[#This Row],[Плановые затраты]]-СведенияБюджета[[#This Row],[Фактические затраты]]","v":{"v":10,"d":"10 ₽"}},{"$f":"СведенияБюджета[[#This Row],[Фактические затраты]]","v":{"v":40,"d":"40 ₽"}}]
[null,"Театр","Развлечения",{"v":200,"d":"200 ₽"},{"v":150,"d":"150 ₽"},{"$f":"СведенияБюджета[[#This Row],[Плановые затраты]]-СведенияБюджета[[#This Row],[Фактические затраты]]","v":{"v":50,"d":"50 ₽"}},{"$f":"СведенияБюджета[[#This Row],[Фактические затраты]]","v":{"v":150,"d":"150 ₽"}}]
[null,"Кино","Развлечения",{"v":50,"d":"50 ₽"},{"v":28,"d":"28 ₽"},{"$f":"СведенияБюджета[[#This Row],[Плановые затраты]]-СведенияБюджета[[#This Row],[Фактические затраты]]","v":{"v":22,"d":"22 ₽"}},{"$f":"СведенияБюджета[[#This Row],[Фактические затраты]]","v":{"v":28,"d":"28 ₽"}}]
[null,"Музыка (компакт-диски, загрузки и т. д.)","Развлечения",{"v":50,"d":"50 ₽"},{"v":30,"d":"30 ₽"},{"$f":"СведенияБюджета[[#This Row],[Плановые затраты]]-СведенияБюджета[[#This Row],[Фактические затраты]]","v":{"v":20,"d":"20 ₽"}},{"$f":"СведенияБюджета[[#This Row],[Фактические затраты]]","v":{"v":30,"d":"30 ₽"}}]
[null,"Спортивные мероприятия","Развлечения",{"v":0,"d":"0 ₽"},{"v":40,"d":"40 ₽"},{"$f":"СведенияБюджета[[#This Row],[Плановые затраты]]-СведенияБюджета[[#This Row],[Фактические затраты]]","v":{"v":-40,"d":"-40 ₽"}},{"$f":"СведенияБюджета[[#This Row],[Фактические затраты]]","v":{"v":40,"d":"40 ₽"}}]
[null,"Видео (покупка)","Развлечения",{"v":20,"d":"20 ₽"},{"v":50,"d":"50 ₽"},{"$f":"СведенияБюджета[[#This Row],[Плановые затраты]]-СведенияБюджета[[#This Row],[Фактические затраты]]","v":{"v":-30,"d":"-30 ₽"}},{"$f":"СведенияБюджета[[#This Row],[Фактические затраты]]","v":{"v":50,"d":"50 ₽"}}]
[null,"Видео (прокат)","Развлечения",{"v":30,"d":"30 ₽"},{"v":20,"d":"20 ₽"},{"$f":"СведенияБюджета[[#This Row],[Плановые затраты]]-СведенияБюджета[[#This Row],[Фактические затраты]]","v":{"v":10,"d":"10 ₽"}},{"$f":"СведенияБюджета[[#This Row],[Фактические затраты]]","v":{"v":20,"d":"20 ₽"}}]
[null,"Рестораны","Еда",{"v":1000,"d":"1,000 ₽"},{"v":1200,"d":"1,200 ₽"},{"$f":"СведенияБюджета[[#This Row],[Плановые затраты]]-СведенияБюджета[[#This Row],[Фактические затраты]]","v":{"v":-200,"d":"-200 ₽"}},{"$f":"СведенияБюджета[[#This Row],[Фактические затраты]]","v":{"v":1200,"d":"1,200 ₽"}}]
[null,"Продовольственные товары","Еда",{"v":100,"d":"100 ₽"},{"v":120,"d":"120 ₽"},{"$f":"СведенияБюджета[[#This Row],[Плановые затраты]]-СведенияБюджета[[#This Row],[Фактические затраты]]","v":{"v":-20,"d":"-20 ₽"}},{"$f":"СведенияБюджета[[#This Row],[Фактические затраты]]","v":{"v":120,"d":"120 ₽"}}]
[null,"Благотворительный взнос 1","Подарки и благотворительность",{"v":75,"d":"75 ₽"},{"v":100,"d":"100 ₽"},{"$f":"СведенияБюджета[[#This Row],[Плановые затраты]]-СведенияБюджета[[#This Row],[Фактические затраты]]","v":{"v":-25,"d":"-25 ₽"}},{"$f":"СведенияБюджета[[#This Row],[Фактические затраты]]","v":{"v":100,"d":"100 ₽"}}]
[null,"Благотворительный взнос 2","Подарки и благотворительность",{"v":25,"d":"25 ₽"},{"v":25,"d":"25 ₽"},{"$f":"СведенияБюджета[[#This Row],[Плановые затраты]]-СведенияБюджета[[#This Row],[Фактические затраты]]","v":{"v":0,"d":"0 ₽"}},{"$f":"СведенияБюджета[[#This Row],[Фактические затраты]]","v":{"v":25,"d":"25 ₽"}}]
[null,"Подарок 1","Подарки и благотворительность",null,null,{"$f":"СведенияБюджета[[#This Row],[Плановые затраты]]-СведенияБюджета[[#This Row],[Фактические затраты]]","v":{"v":0,"d":"0 ₽"}},{"$f":"СведенияБюджета[[#This Row],[Фактические затраты]]","v":{"v":0,"d":"0 ₽"}}]
[null,"Подарок 2","Подарки и благотворительность",null,null,{"$f":"СведенияБюджета[[#This Row],[Плановые затраты]]-СведенияБюджета[[#This Row],[Фактические затраты]]","v":{"v":0,"d":"0 ₽"}},{"$f":"СведенияБюджета[[#This Row],[Фактические затраты]]","v":{"v":0,"d":"0 ₽"}}]
[null,"Кабельное или спутниковое ТВ","Жилье",{"v":100,"d":"100 ₽"},{"v":100,"d":"100 ₽"},{"$f":"СведенияБюджета[[#This Row],[Плановые затраты]]-СведенияБюджета[[#This Row],[Фактические затраты]]","v":{"v":0,"d":"0 ₽"}},{"$f":"СведенияБюджета[[#This Row],[Фактические затраты]]","v":{"v":100,"d":"100 ₽"}}]
[null,"Электричество","Жилье",{"v":45,"d":"45 ₽"},{"v":50,"d":"50 ₽"},{"$f":"СведенияБюджета[[#This Row],[Плановые затраты]]-СведенияБюджета[[#This Row],[Фактические затраты]]","v":{"v":-5,"d":"-5 ₽"}},{"$f":"СведенияБюджета[[#This Row],[Фактические затраты]]","v":{"v":50,"d":"50 ₽"}}]
[null,"Бензин","Жилье",{"v":300,"d":"300 ₽"},{"v":400,"d":"400 ₽"},{"$f":"СведенияБюджета[[#This Row],[Плановые затраты]]-СведенияБюджета[[#This Row],[Фактические затраты]]","v":{"v":-100,"d":"-100 ₽"}},{"$f":"СведенияБюджета[[#This Row],[Фактические затраты]]","v":{"v":400,"d":"400 ₽"}}]
[null,"Уборка дома","Жилье",{"v":200,"d":"200 ₽"},null,{"$f":"СведенияБюджета[[#This Row],[Плановые затраты]]-СведенияБюджета[[#This Row],[Фактические затраты]]","v":{"v":200,"d":"200 ₽"}},{"$f":"СведенияБюджета[[#This Row],[Фактические затраты]]","v":{"v":0,"d":"0 ₽"}}]
[null,"Обслуживание","Жилье",{"v":200,"d":"200 ₽"},{"v":150,"d":"150 ₽"},{"$f":"СведенияБюджета[[#This Row],[Плановые затраты]]-СведенияБюджета[[#This Row],[Фактические затраты]]","v":{"v":50,"d":"50 ₽"}},{"$f":"СведенияБюджета[[#This Row],[Фактические затраты]]","v":{"v":150,"d":"150 ₽"}}]
[null,"Ипотека или аренда","Жилье",{"v":1700,"d":"1,700 ₽"},{"v":1700,"d":"1,700 ₽"},{"$f":"СведенияБюджета[[#This Row],[Плановые затраты]]-СведенияБюджета[[#This Row],[Фактические затраты]]","v":{"v":0,"d":"0 ₽"}},{"$f":"СведенияБюджета[[#This Row],[Фактические затраты]]","v":{"v":1700,"d":"1,700 ₽"}}]
[null,"Природный газ","Жилье",null,null,{"$f":"СведенияБюджета[[#This Row],[Плановые затраты]]-СведенияБюджета[[#This Row],[Фактические затраты]]","v":{"v":0,"d":"0 ₽"}},{"$f":"СведенияБюджета[[#This Row],[Фактические затраты]]","v":{"v":0,"d":"0 ₽"}}]
[null,"Интернет","Жилье",{"v":100,"d":"100 ₽"},{"v":100,"d":"100 ₽"},{"$f":"СведенияБюджета[[#This Row],[Плановые затраты]]-СведенияБюджета[[#This Row],[Фактические затраты]]","v":{"v":0,"d":"0 ₽"}},{"$f":"СведенияБюджета[[#This Row],[Фактические затраты]]","v":{"v":100,"d":"100 ₽"}}]
[null,"Телефон (мобильный)","Жилье",{"v":60,"d":"60 ₽"},{"v":60,"d":"60 ₽"},{"$f":"СведенияБюджета[[#This Row],[Плановые затраты]]-СведенияБюджета[[#This Row],[Фактические затраты]]","v":{"v":0,"d":"0 ₽"}},{"$f":"СведенияБюджета[[#This Row],[Фактические затраты]]","v":{"v":60,"d":"60 ₽"}}]
[null,"Телефон (домашний)","Жилье",{"v":35,"d":"35 ₽"},{"v":39,"d":"39 ₽"},{"$f":"СведенияБюджета[[#This Row],[Плановые затраты]]-СведенияБюджета[[#This Row],[Фактические затраты]]","v":{"v":-4,"d":"-4 ₽"}},{"$f":"СведенияБюджета[[#This Row],[Фактические затраты]]","v":{"v":39,"d":"39 ₽"}}]
[null,"Принадлежности","Жилье",{"v":40,"d":"40 ₽"},{"v":55,"d":"55 ₽"},{"$f":"СведенияБюджета[[#This Row],[Плановые затраты]]-СведенияБюджета[[#This Row],[Фактические затраты]]","v":{"v":-15,"d":"-15 ₽"}},{"$f":"СведенияБюджета[[#This Row],[Фактические затраты]]","v":{"v":55,"d":"55 ₽"}}]
[null,"Вывоз и переработка мусора","Жилье",{"v":25,"d":"25 ₽"},{"v":22,"d":"22 ₽"},{"$f":"СведенияБюджета[[#This Row],[Плановые затраты]]-СведенияБюджета[[#This Row],[Фактические затраты]]","v":{"v":3,"d":"3 ₽"}},{"$f":"СведенияБюджета[[#This Row],[Фактические затраты]]","v":{"v":22,"d":"22 ₽"}}]
[null,"Водоснабжение и канализация","Жилье",{"v":25,"d":"25 ₽"},{"v":26,"d":"26 ₽"},{"$f":"СведенияБюджета[[#This Row],[Плановые затраты]]-СведенияБюджета[[#This Row],[Фактические затраты]]","v":{"v":-1,"d":"-1 ₽"}},{"$f":"СведенияБюджета[[#This Row],[Фактические затраты]]","v":{"v":26,"d":"26 ₽"}}]
[null,"Здоровье","Страхование",{"v":400,"d":"400 ₽"},{"v":400,"d":"400 ₽"},{"$f":"СведенияБюджета[[#This Row],[Плановые затраты]]-СведенияБюджета[[#This Row],[Фактические затраты]]","v":{"v":0,"d":"0 ₽"}},{"$f":"СведенияБюджета[[#This Row],[Фактические затраты]]","v":{"v":400,"d":"400 ₽"}}]
[null,"Дом","Страхование",{"v":400,"d":"400 ₽"},{"v":400,"d":"400 ₽"},{"$f":"СведенияБюджета[[#This Row],[Плановые затраты]]-СведенияБюджета[[#This Row],[Фактические затраты]]","v":{"v":0,"d":"0 ₽"}},{"$f":"СведенияБюджета[[#This Row],[Фактические затраты]]","v":{"v":400,"d":"400 ₽"}}]
[null,"Жизнь","Страхование",{"v":100,"d":"100 ₽"},{"v":100,"d":"100 ₽"},{"$f":"СведенияБюджета[[#This Row],[Плановые затраты]]-СведенияБюджета[[#This Row],[Фактические затраты]]","v":{"v":0,"d":"0 ₽"}},{"$f":"СведенияБюджета[[#This Row],[Фактические затраты]]","v":{"v":100,"d":"100 ₽"}}]
[null,"Кредитная карта 1","Кредиты",{"v":200,"d":"200 ₽"},{"v":200,"d":"200 ₽"},{"$f":"СведенияБюджета[[#This Row],[Плановые затраты]]-СведенияБюджета[[#This Row],[Фактические затраты]]","v":{"v":0,"d":"0 ₽"}},{"$f":"СведенияБюджета[[#This Row],[Фактические затраты]]","v":{"v":200,"d":"200 ₽"}}]
[null,"Кредитная карта 2","Кредиты",null,null,{"$f":"СведенияБюджета[[#This Row],[Плановые затраты]]-СведенияБюджета[[#This Row],[Фактические затраты]]","v":{"v":0,"d":"0 ₽"}},{"$f":"СведенияБюджета[[#This Row],[Фактические затраты]]","v":{"v":0,"d":"0 ₽"}}]
[null,"Кредитная карта 3","Кредиты",null,null,{"$f":"СведенияБюджета[[#This Row],[Плановые затраты]]-СведенияБюджета[[#This Row],[Фактические затраты]]","v":{"v":0,"d":"0 ₽"}},{"$f":"СведенияБюджета[[#This Row],[Фактические затраты]]","v":{"v":0,"d":"0 ₽"}}]
[null,"Личные накопления","Кредиты",null,null,{"$f":"СведенияБюджета[[#This Row],[Плановые затраты]]-СведенияБюджета[[#This Row],[Фактические затраты]]","v":{"v":0,"d":"0 ₽"}},{"$f":"СведенияБюджета[[#This Row],[Фактические затраты]]","v":{"v":0,"d":"0 ₽"}}]
[null,"На учебу","Кредиты",null,null,{"$f":"СведенияБюджета[[#This Row],[Плановые затраты]]-СведенияБюджета[[#This Row],[Фактические затраты]]","v":{"v":0,"d":"0 ₽"}},{"$f":"СведенияБюджета[[#This Row],[Фактические затраты]]","v":{"v":0,"d":"0 ₽"}}]
[null,"Одежда","Предметы личной гигиены",{"v":150,"d":"150 ₽"},{"v":140,"d":"140 ₽"},{"$f":"СведенияБюджета[[#This Row],[Плановые затраты]]-СведенияБюджета[[#This Row],[Фактические затраты]]","v":{"v":10,"d":"10 ₽"}},{"$f":"СведенияБюджета[[#This Row],[Фактические затраты]]","v":{"v":140,"d":"140 ₽"}}]
[null,"Химчистка","Предметы личной гигиены",null,null,{"$f":"СведенияБюджета[[#This Row],[Плановые затраты]]-СведенияБюджета[[#This Row],[Фактические затраты]]","v":{"v":0,"d":"0 ₽"}},{"$f":"СведенияБюджета[[#This Row],[Фактические затраты]]","v":{"v":0,"d":"0 ₽"}}]
[null,"Уход за волосами/ногтями","Предметы личной гигиены",null,null,{"$f":"СведенияБюджета[[#This Row],[Плановые затраты]]-СведенияБюджета[[#This Row],[Фактические затраты]]","v":{"v":0,"d":"0 ₽"}},{"$f":"СведенияБюджета[[#This Row],[Фактические затраты]]","v":{"v":0,"d":"0 ₽"}}]
[null,"Фитнес-клуб","Предметы личной гигиены",null,null,{"$f":"СведенияБюджета[[#This Row],[Плановые затраты]]-СведенияБюджета[[#This Row],[Фактические затраты]]","v":{"v":0,"d":"0 ₽"}},{"$f":"СведенияБюджета[[#This Row],[Фактические затраты]]","v":{"v":0,"d":"0 ₽"}}]
[null,"Медицина","Предметы личной гигиены",null,null,{"$f":"СведенияБюджета[[#This Row],[Плановые затраты]]-СведенияБюджета[[#This Row],[Фактические затраты]]","v":{"v":0,"d":"0 ₽"}},{"$f":"СведенияБюджета[[#This Row],[Фактические затраты]]","v":{"v":0,"d":"0 ₽"}}]
[null,"Еда","Домашние животные",{"v":150,"d":"150 ₽"},{"v":75,"d":"75 ₽"},{"$f":"СведенияБюджета[[#This Row],[Плановые затраты]]-СведенияБюджета[[#This Row],[Фактические затраты]]","v":{"v":75,"d":"75 ₽"}},{"$f":"СведенияБюджета[[#This Row],[Фактические затраты]]","v":{"v":75,"d":"75 ₽"}}]
[null,"Уход","Домашние животные",{"v":20,"d":"20 ₽"},{"v":25,"d":"25 ₽"},{"$f":"СведенияБюджета[[#This Row],[Плановые затраты]]-СведенияБюджета[[#This Row],[Фактические затраты]]","v":{"v":-5,"d":"-5 ₽"}},{"$f":"СведенияБюджета[[#This Row],[Фактические затраты]]","v":{"v":25,"d":"25 ₽"}}]
[null,"Медицина","Домашние животные",null,null,{"$f":"СведенияБюджета[[#This Row],[Плановые затраты]]-СведенияБюджета[[#This Row],[Фактические затраты]]","v":{"v":0,"d":"0 ₽"}},{"$f":"СведенияБюджета[[#This Row],[Фактические затраты]]","v":{"v":0,"d":"0 ₽"}}]
[null,"Игрушки","Домашние животные",null,null,{"$f":"СведенияБюджета[[#This Row],[Плановые затраты]]-СведенияБюджета[[#This Row],[Фактические затраты]]","v":{"v":0,"d":"0 ₽"}},{"$f":"СведенияБюджета[[#This Row],[Фактические затраты]]","v":{"v":0,"d":"0 ₽"}}]
[null,"Инвестиционный счет","Сбережения и инвестиции",{"v":200,"d":"200 ₽"},{"v":200,"d":"200 ₽"},{"$f":"СведенияБюджета[[#This Row],[Плановые затраты]]-СведенияБюджета[[#This Row],[Фактические затраты]]","v":{"v":0,"d":"0 ₽"}},{"$f":"СведенияБюджета[[#This Row],[Фактические затраты]]","v":{"v":200,"d":"200 ₽"}}]
[null,"Пенсионный счет","Сбережения и инвестиции",null,null,{"$f":"СведенияБюджета[[#This Row],[Плановые затраты]]-СведенияБюджета[[#This Row],[Фактические затраты]]","v":{"v":0,"d":"0 ₽"}},{"$f":"СведенияБюджета[[#This Row],[Фактические затраты]]","v":{"v":0,"d":"0 ₽"}}]
[null,"Федеральные","Налоги",{"v":300,"d":"300 ₽"},{"v":300,"d":"300 ₽"},{"$f":"СведенияБюджета[[#This Row],[Плановые затраты]]-СведенияБюджета[[#This Row],[Фактические затраты]]","v":{"v":0,"d":"0 ₽"}},{"$f":"СведенияБюджета[[#This Row],[Фактические затраты]]","v":{"v":300,"d":"300 ₽"}}]
[null,"Местные","Налоги",null,null,{"$f":"СведенияБюджета[[#This Row],[Плановые затраты]]-СведенияБюджета[[#This Row],[Фактические затраты]]","v":{"v":0,"d":"0 ₽"}},{"$f":"СведенияБюджета[[#This Row],[Фактические затраты]]","v":{"v":0,"d":"0 ₽"}}]
[null,"Региональные","Налоги",null,null,{"$f":"СведенияБюджета[[#This Row],[Плановые затраты]]-СведенияБюджета[[#This Row],[Фактические затраты]]","v":{"v":0,"d":"0 ₽"}},{"$f":"СведенияБюджета[[#This Row],[Фактические затраты]]","v":{"v":0,"d":"0 ₽"}}]
[null,"Проезд на автобусе/такси","Транспорт",{"v":100,"d":"100 ₽"},{"v":150,"d":"150 ₽"},{"$f":"СведенияБюджета[[#This Row],[Плановые затраты]]-СведенияБюджета[[#This Row],[Фактические затраты]]","v":{"v":-50,"d":"-50 ₽"}},{"$f":"СведенияБюджета[[#This Row],[Фактические затраты]]","v":{"v":150,"d":"150 ₽"}}]
[null,"Топливо","Транспорт",{"v":450,"d":"450 ₽"},{"v":400,"d":"400 ₽"},{"$f":"СведенияБюджета[[#This Row],[Плановые затраты]]-СведенияБюджета[[#This Row],[Фактические затраты]]","v":{"v":50,"d":"50 ₽"}},{"$f":"СведенияБюджета[[#This Row],[Фактические затраты]]","v":{"v":400,"d":"400 ₽"}}]
[null,"Страхование","Транспорт",{"v":300,"d":"300 ₽"},{"v":300,"d":"300 ₽"},{"$f":"СведенияБюджета[[#This Row],[Плановые затраты]]-СведенияБюджета[[#This Row],[Фактические затраты]]","v":{"v":0,"d":"0 ₽"}},{"$f":"СведенияБюджета[[#This Row],[Фактические затраты]]","v":{"v":300,"d":"300 ₽"}}]
[null,"Лицензирование ","Транспорт",{"v":25,"d":"25 ₽"},{"v":25,"d":"25 ₽"},{"$f":"СведенияБюджета[[#This Row],[Плановые затраты]]-СведенияБюджета[[#This Row],[Фактические затраты]]","v":{"v":0,"d":"0 ₽"}},{"$f":"СведенияБюджета[[#This Row],[Фактические затраты]]","v":{"v":25,"d":"25 ₽"}}]
[null,"Обслуживание","Транспорт",{"v":100,"d":"100 ₽"},{"v":50,"d":"50 ₽"},{"$f":"СведенияБюджета[[#This Row],[Плановые затраты]]-СведенияБюджета[[#This Row],[Фактические затраты]]","v":{"v":50,"d":"50 ₽"}},{"$f":"СведенияБюджета[[#This Row],[Фактические затраты]]","v":{"v":50,"d":"50 ₽"}}]
[null,"Плата за парковку","Транспорт",null,null,{"$f":"СведенияБюджета[[#This Row],[Плановые затраты]]-СведенияБюджета[[#This Row],[Фактические затраты]]","v":{"v":0,"d":"0 ₽"}},{"$f":"СведенияБюджета[[#This Row],[Фактические затраты]]","v":{"v":0,"d":"0 ₽"}}]
[null,"Расходы на автомобиль","Транспорт",{"v":450,"d":"450 ₽"},{"v":450,"d":"450 ₽"},{"$f":"СведенияБюджета[[#This Row],[Плановые затраты]]-СведенияБюджета[[#This Row],[Фактические затраты]]","v":{"v":0,"d":"0 ₽"}},{"$f":"СведенияБюджета[[#This Row],[Фактические затраты]]","v":{"v":450,"d":"450 ₽"}}]
[null,"Итог",null,{"$f":"SUBTOTAL(109,СведенияБюджета[Плановые затраты])","v":{"v":7915,"d":"7,915 ₽"}},{"$f":"SUBTOTAL(109,СведенияБюджета[Фактические затраты])","v":{"v":7860,"d":"7,860 ₽"}},{"$f":"SUBTOTAL(109,СведенияБюджета[Разница])","v":{"v":55,"d":"55 ₽"}}]

{"sheet":"Дополнительные данные","index":3,"n_rows":15,"n_cols":5,"rows_kept":15}
["Используйте этот лист для изменения раскрывающегося списка столбца «Категория» в таблице Сведения Бюджета на листе «Ежемесячные расходы». Для этого измените или введите новую категорию в таблице Подстановка Категории Бюджета, начинающейся с ячейки E2. Сводная таблица, связанная с диаграммой «Обзор бюджета» на листе «Отчет ежемесячного бюджета», начинается в ячейке B2.","Сводная таблица для диаграммы «Обзор бюджета»",null,null,"Список подстановки для категорий бюджетных сведений"]
[null,"Категория","Затраты",null,"Подстановка Категории Бюджета"]
[null,"Дети",{"v":140,"d":"140 ₽"},null,"Дети"]
[null,"Развлечения",{"v":358,"d":"358 ₽"},null,"Развлечения"]
[null,"Еда",{"v":1320,"d":"1,320 ₽"},null,"Еда"]
[null,"Подарки и благотворительность",{"v":125,"d":"125 ₽"},null,"Подарки и благотворительность"]
[null,"Жилье",{"v":2702,"d":"2,702 ₽"},null,"Жилье"]
[null,"Страхование",{"v":900,"d":"900 ₽"},null,"Страхование"]
[null,"Кредиты",{"v":200,"d":"200 ₽"},null,"Кредиты"]
[null,"Предметы личной гигиены",{"v":140,"d":"140 ₽"},null,"Предметы личной гигиены"]
[null,"Домашние животные",{"v":100,"d":"100 ₽"},null,"Домашние животные"]
[null,"Сбережения и инвестиции",{"v":200,"d":"200 ₽"},null,"Сбережения и инвестиции"]
[null,"Налоги",{"v":300,"d":"300 ₽"},null,"Налоги"]
[null,"Транспорт",{"v":1375,"d":"1,375 ₽"},null,"Транспорт"]
[null,"Общий итог",{"v":7860,"d":"7,860 ₽"}]